bitfinex/quotes_SOLUSD_20251130
["timestamp","ask_amount","ask_price","bid_price","bid_amount"]
[1764475388370,3.25051934,136.55,136.54,1.96048151]
[1764475389355,27.53227969,136.56,136.54,2.64048151]
[1764475390977,3.25051934,136.56,136.54,64.76048151]
[1764475391269,3.25051934,136.56,136.55,1.96048151]
[1764475391857,3.90051934,136.56,136.55,1.96048151]
[1764475395751,3.25051934,136.56,136.55,2.64048151]
[1764475395976,3.25051934,136.57,136.55,9.96363579]
[1764475396283,3.25051934,136.58,136.57,1.96048151]
[1764475396458,3.90051934,136.58,136.57,1.96048151]
[1764475396772,2.72805423,136.58,136.57,1.96048151]
[1764475398475,2.72805423,136.58,136.56,2.64048151]
[1764475398773,2.72805423,136.58,136.57,1.96048151]
[1764475399776,2.72805423,136.58,136.56,2.64048151]
[1764475399974,2.72805423,136.58,136.57,1.96048151]
[1764475401760,10.54315428,136.59,136.58,1.96048151]
[1764475401972,2.07805423,136.59,136.58,2.66048151]
[1764475402558,2.74805423,136.6,136.58,2.66048151]
[1764475402764,2.74805423,136.6,136.59,1.96048151]
[1764475404979,2.07805423,136.6,136.59,1.96048151]
[1764475405184,18.38691823,136.61,136.59,1.96048151]
[1764475405383,0.68,136.61,136.6,1.96048151]
[1764475406585,2.75805423,136.61,136.6,1.96048151]
[1764475407484,10.07683517,136.64,136.62,1.96048151]
[1764475407680,10.07683517,136.64,136.63,1.96048151]
[1764475407884,9.39683517,136.64,136.63,1.96048151]
[1764475409300,2.75805423,136.65,136.64,1.96048151]
[1764475410590,2.07805423,136.65,136.64,1.96048151]
[1764475410985,0.68,136.65,136.64,1.96048151]
[1764475411188,2.75805423,136.65,136.64,1.96048151]
[1764475417881,2.07805423,136.65,136.64,1.96048151]
[1764475420301,2.75805423,136.65,136.64,1.96048151]
[1764475421205,2.07805423,136.65,136.64,1.96048151]
[1764475421498,0.1,136.66,136.65,10.77042643]
[1764475421710,0.1,136.66,136.65,11.43042643]
[1764475422495,0.1,136.66,136.65,15.43042643]
[1764475423498,2.85805423,136.66,136.65,1.96048151]
[1764475424299,0.78,136.66,136.65,1.96048151]
[1764475424480,0.1,136.66,136.65,1.96048151]
[1764475424796,0.78,136.66,136.65,1.96048151]
[1764475425390,0.1,136.66,136.65,2.62048151]
[1764475425595,0.1,136.66,136.65,1.96048151]
[1764475426289,0.1,136.66,136.65,18.74839203]
[1764475426498,0.1,136.66,136.65,18.08839203]
[1764475426799,0.1,136.66,136.65,18.74839203]
[1764475428007,0.1,136.66,136.65,18.08839203]
[1764475428709,0.1,136.66,136.65,21.01997618]
[1764475429924,0.1,136.66,136.65,21.67997618]
[1764475431608,0.1,136.66,136.65,102.86689441]
[1764475431920,1e-08,136.66,136.65,101.07316332]
[1764475432091,0.1,136.67,136.66,27.07929043]
[1764475432288,0.1,136.68,136.67,0.28432314]
[1764475432492,0.1,136.68,136.67,9.75426806]
[1764475432693,0.1,136.68,136.67,11.71474957]
[1764475433292,0.1,136.68,136.67,16.43899093]
[1764475433902,0.1,136.68,136.67,26.97588563]
[1764475435293,0.1,136.68,136.67,24.8978314]
[1764475437123,0.1,136.68,136.67,89.77588563]
[1764475438524,0.1,136.68,136.67,86.55588563]
[1764475438820,0.1,136.68,136.67,89.77588563]
[1764475439320,0.1,136.68,136.67,87.0378314]
[1764475439701,0.1,136.68,136.67,79.7209367]
[1764475440022,0.1,136.68,136.67,87.0378314]
[1764475440398,0.78,136.68,136.67,12.49737621]
[1764475440600,0.1,136.68,136.67,21.30732113]
[1764475442231,0.1,136.68,136.67,21.96732113]
[1764475442518,0.1,136.68,136.67,21.30732113]
[1764475443524,0.78,136.68,136.67,21.30732113]
[1764475443709,0.78,136.68,136.67,9.27737621]
[1764475443908,0.78,136.68,136.67,1.96048151]
[1764475444108,2.85805423,136.68,136.67,1.96048151]
[1764475444421,5.88942354,136.68,136.67,1.96048151]
[1764475444623,13.20578291,136.68,136.67,1.96048151]
[1764475444798,3.81136931,136.68,136.67,1.96048151]
[1764475445003,0.78,136.68,136.67,1.96048151]
[1764475448433,2.85805423,136.68,136.67,1.96048151]
[1764475449949,0.78,136.68,136.67,1.96048151]
[1764475454824,0.78,136.68,136.67,64.76048151]
[1764475456828,4.02184952,136.68,136.67,64.76048151]
[1764475459112,0.78,136.68,136.67,64.76048151]
[1764475460846,0.78,136.68,136.67,1.96048151]
[1764475461037,16.308864,136.67,136.63,1.96048151]
[1764475461228,3.24184952,136.64,136.63,1.96048151]
[1764475461743,3.92184952,136.64,136.63,1.96048151]
[1764475462457,16.308864,136.63,136.61,1.96048151]
[1764475462747,3.24184952,136.62,136.59,5.18048151]
[1764475462949,10.56205794,136.61,136.59,1.96048151]
[1764475463144,7.98069623,136.65,136.64,1.96048151]
[1764475463442,0.68,136.67,136.66,1.96048151]
[1764475468928,11.23874422,136.67,136.66,1.96048151]
[1764475470155,7.9968947,136.67,136.66,1.96048151]
[1764475470764,11.23874422,136.67,136.66,1.96048151]
[1764475471341,0.68,136.67,136.66,1.96048151]
[1764475473248,7.9968947,136.67,136.66,1.96048151]
[1764475474545,0.68,136.67,136.66,1.96048151]
[1764475475540,7.9968947,136.67,136.66,1.96048151]
[1764475476444,0.68,136.67,136.66,1.96048151]
[1764475480448,0.1,136.68,136.67,1.96048151]
[1764475480864,0.8,136.68,136.67,1.96048151]
[1764475483340,0.1,136.68,136.67,1.96048151]
[1764475487776,0.1,136.68,136.67,2.64048151]
[1764475489050,0.1,136.68,136.67,1.96048151]
[1764475490865,0.1,136.68,136.67,81.56732113]
[1764475493971,0.1,136.68,136.67,84.80917065]
[1764475495564,0.1,136.71,136.7,1.96048151]
[1764475497779,0.1,136.71,136.7,9.27577046]
[1764475498482,0.1,136.71,136.7,81.59571538]
[1764475498780,0.1,136.71,136.7,80.88571538]
[1764475498989,0.8,136.71,136.7,1.96048151]
[1764475501079,4.04184952,136.71,136.7,1.96048151]
[1764475502507,4.04184952,136.71,136.66,81.80305977]
[1764475502508,11.35660337,136.71,136.69,1.96048151]
[1764475502783,3.94184952,136.7,136.69,1.96048151]
[1764475503083,11.25713847,136.7,136.69,1.96048151]
[1764475503274,11.25713847,136.7,136.68,1.96048151]
[1764475503584,7.31528895,136.7,136.68,1.96048151]
[1764475503981,0.7,136.69,136.68,1.96048151]
[1764475504563,11.25767364,136.69,136.68,1.96048151]
[1764475504807,11.25767364,136.69,136.66,1.96048151]
[1764475505083,0.7,136.68,136.67,1.96048151]
[1764475506069,11.25820889,136.68,136.67,1.96048151]
[1764475506463,7.31635937,136.68,136.67,1.96048151]
[1764475506670,11.25820889,136.68,136.67,1.96048151]
[1764475509182,11.25820889,136.68,136.66,1.96048151]
[1764475509358,7.31635937,136.68,136.67,1.96048151]
[1764475509557,10.55820889,136.68,136.67,1.96048151]
[1764475509784,10.55820889,136.68,136.66,1.96048151]
[1764475510005,3.94184952,136.67,136.65,1.96048151]
[1764475510391,0.7,136.66,136.65,1.96048151]
[1764475510574,3.94184952,136.66,136.65,1.96048151]
[1764475512496,11.25927963,136.66,136.65,1.96048151]
[1764475516598,10.09310005,136.66,136.65,1.96048151]
[1764475520690,10.09310005,136.66,136.64,1.96048151]
[1764475520997,9.39310005,136.66,136.64,1.96048151]
[1764475521306,9.39310005,136.66,136.65,1.96048151]
[1764475521869,7.31691489,136.67,136.66,1.96048151]
[1764475522085,8.01691489,136.67,136.66,1.96048151]
[1764475523184,24.32539946,136.68,136.66,1.96048151]
[1764475523795,23.62539946,136.68,136.66,1.96048151]
[1764475524097,0.7,136.67,136.66,1.96048151]
[1764475525598,13.31256464,136.67,136.66,1.96048151]
[1764475527688,10.5368947,136.67,136.66,1.96048151]
[1764475527893,11.2168947,136.67,136.66,1.96048151]
[1764475528770,7.9968947,136.67,136.66,1.96048151]
[1764475530380,7.3168947,136.67,136.66,1.96048151]
[1764475530988,7.3164493,136.68,136.66,1.96048151]
[1764475531198,7.9964493,136.68,136.67,1.96048151]
[1764475538809,7.3164493,136.68,136.67,1.96048151]
[1764475539904,7.9964493,136.68,136.67,1.96048151]
[1764475542207,7.3164493,136.68,136.67,1.96048151]
[1764475545210,10.07211924,136.68,136.67,1.96048151]
[1764475547496,9.39211924,136.68,136.67,1.96048151]
[1764475547800,9.39149406,136.69,136.68,1.96048151]
[1764475548113,10.07149406,136.69,136.68,1.96048151]
[1764475549103,10.07149406,136.69,136.67,1.96048151]
[1764475549309,10.07149406,136.69,136.68,1.96048151]
[1764475550614,7.31582412,136.69,136.68,1.96048151]
[1764475551494,19.35158183,136.71,136.69,1.96048151]
[1764475551495,0.1,136.71,136.69,1.96048151]
[1764475551691,8.09487531,136.71,136.7,1.96048151]
[1764475551892,10.17054525,136.71,136.7,1.96048151]
[1764475557621,2.85566994,136.71,136.7,1.96048151]
[1764475557913,10.17042379,136.71,136.7,1.96048151]
[1764475558092,9.49042379,136.71,136.7,1.96048151]
[1764475563625,10.20042379,136.71,136.7,1.96048151]
[1764475566727,8.12475385,136.71,136.7,1.96048151]
[1764475567025,10.20042379,136.71,136.7,1.96048151]
[1764475567734,8.12475385,136.71,136.7,1.96048151]
[1764475567918,10.20042379,136.71,136.7,1.96048151]
[1764475568908,7.41475385,136.71,136.7,1.96048151]
[1764475571832,8.12475385,136.71,136.7,1.96048151]
[1764475573925,10.20042379,136.71,136.7,1.96048151]
[1764475576514,9.49042379,136.71,136.7,1.96048151]
[1764475576709,7.41475385,136.71,136.7,1.96048151]
[1764475576936,8.12475385,136.71,136.7,1.96048151]
[1764475577233,10.20042379,136.71,136.7,1.96048151]
[1764475578634,11.36562784,136.71,136.7,1.96048151]
[1764475579834,11.36562784,136.71,136.69,1.96048151]
[1764475580023,11.36562784,136.71,136.68,64.76048151]
[1764475580024,3.95087399,136.7,136.68,64.76048151]
[1764475580225,3.24087399,136.69,136.68,64.76048151]
[1764475580438,3.95087399,136.69,136.68,64.76048151]
[1764475580935,11.26669811,136.69,136.68,1.96048151]
[1764475582121,11.26669811,136.69,136.67,1.96048151]
[1764475582328,25.21010445,136.7,136.67,1.96048151]
[1764475582329,11.26723336,136.68,136.67,1.96048151]
[1764475590444,11.26723336,136.68,136.66,1.96048151]
[1764475590633,0.68,136.67,136.66,1.96048151]
[1764475590829,10.55723336,136.68,136.66,2.66048151]
[1764475591030,11.23723336,136.68,136.66,1.96048151]
[1764475591243,11.23723336,136.68,136.67,1.96048151]
[1764475592943,7.99635937,136.68,136.67,1.96048151]
[1764475593146,6.46087399,136.69,136.67,1.96048151]
[1764475593147,10.53597214,136.69,136.68,1.96048151]
[1764475593338,10.53597214,136.69,136.67,2.66048151]
[1764475593520,11.21597214,136.69,136.68,1.96048151]
[1764475594647,10.53597214,136.69,136.68,1.96048151]
[1764475594852,7.31597214,136.69,136.68,1.96048151]
[1764475595153,7.31597214,136.69,136.68,2.66048151]
[1764475595736,7.31597214,136.69,136.68,1.96048151]
[1764475596448,7.31528895,136.7,136.69,1.96048151]
[1764475596827,0.68,136.7,136.69,1.96048151]
[1764475597057,14.55582172,136.71,136.69,1.96048151]
[1764475597756,0.1,136.71,136.7,2.66048151]
[1764475602152,0.1,136.71,136.7,65.46048151]
[1764475608565,0.1,136.71,136.7,74.27042643]
[1764475610461,0.1,136.71,136.7,11.47042643]
[1764475612264,4.02087399,136.71,136.7,1.96048151]
[1764475614669,11.33562784,136.71,136.7,1.96048151]
[1764475615651,0.1,136.71,136.7,1.96048151]
[1764475617551,0.1,136.71,136.7,2.68048151]
[1764475621344,0.1,136.71,136.7,84.82571538]
[1764475623655,0.1,136.71,136.7,88.06658937]
[1764475625461,0.1,136.71,136.7,84.82571538]
[1764475633503,0.1,136.71,136.7,88.06658937]
[1764475633782,0.1,136.71,136.7,220.4038466]
[1764475638590,0.1,136.71,136.7,219.23496092]
[1764475639091,0.69,136.77,136.75,8.80994492]
[1764475639292,0.69,136.77,136.75,74.62994492]
[1764475639492,0.69,136.77,136.76,10.77042643]
[1764475641288,9.38258242,136.79,136.78,1.96048151]
[1764475641598,0.1,136.8,136.79,10.77042643]
[1764475642477,0.78,136.8,136.79,10.77042643]
[1764475644676,0.1,136.8,136.79,10.77042643]
[1764475644894,0.1,136.8,136.79,11.45042643]
[1764475646305,0.1,136.8,136.79,10.77042643]
[1764475646899,0.1,136.8,136.79,83.45289065]
[1764475649596,2.87198831,136.8,136.79,64.56048151]
[1764475650486,0.8,136.8,136.79,64.56048151]
[1764475653189,2.87198831,136.8,136.79,1.96048151]
[1764475659187,0.8,136.8,136.79,1.96048151]
[1764475659703,8.10994152,136.8,136.77,1.96048151]
[1764475659907,2.07198831,136.79,136.77,1.96048151]
[1764475660205,2.77198831,136.79,136.77,1.96048151]
[1764475660404,0.7,136.78,136.77,1.96048151]
[1764475662202,2.77198831,136.78,136.77,1.96048151]
[1764475663688,10.08299869,136.78,136.77,1.96048151]
[1764475667788,10.08299869,136.78,136.76,1.96048151]
[1764475668009,9.38299869,136.78,136.77,1.96048151]
[1764475668313,2.07198831,136.78,136.77,1.96048151]
[1764475668511,2.77198831,136.78,136.77,1.96048151]
[1764475669212,10.08299869,136.78,136.77,1.96048151]
[1764475671486,10.08299869,136.78,136.76,1.96048151]
[1764475671687,2.77198831,136.77,136.74,1.96048151]
[1764475671902,2.07198831,136.75,136.74,1.96048151]
[1764475672391,2.77198831,136.75,136.74,1.96048151]
[1764475674214,10.08460256,136.75,136.74,1.96048151]
[1764475674616,8.01261425,136.75,136.74,1.96048151]
[1764475674798,10.08460256,136.75,136.74,1.96048151]
[1764475679017,10.08460256,136.75,136.73,1.96048151]
[1764475679206,2.77198831,136.74,136.73,1.96048151]
[1764475679718,10.08513735,136.74,136.73,1.96048151]
[1764475681917,10.08513735,136.74,136.72,1.96048151]
[1764475682122,2.77198831,136.73,136.72,1.96048151]
[1764475683618,7.31314904,136.74,136.73,1.96048151]
[1764475683809,8.01314904,136.74,136.73,1.96048151]
[1764475684011,10.08513735,136.74,136.72,1.96048151]
[1764475684222,0.7,136.73,136.72,1.96048151]
[1764475685017,2.77198831,136.73,136.72,1.96048151]
[1764475685438,10.08567221,136.73,136.7,1.96048151]
[1764475685722,2.07198831,136.71,136.7,1.96048151]
[1764475685926,2.07198831,136.71,136.69,1.96048151]
[1764475686135,2.77198831,136.7,136.69,1.96048151]
[1764475687241,10.08727726,136.7,136.69,1.96048151]
[1764475688305,8.01528895,136.7,136.69,1.96048151]
[1764475693930,7.31314904,136.74,136.71,1.96048151]
[1764475694133,8.01314904,136.74,136.72,1.96048151]
[1764475695020,0.7,136.73,136.72,1.96048151]
[1764475695219,7.31314904,136.74,136.72,1.96048151]
[1764475695406,8.01314904,136.74,136.72,1.96048151]
[1764475696234,0.7,136.76,136.74,1.96048151]
[1764475696441,2.07198831,136.77,136.75,1.96048151]
[1764475696442,7.31154492,136.77,136.75,1.96048151]
[1764475696613,8.01154492,136.77,136.75,1.96048151]
[1764475697333,0.7,136.76,136.75,1.96048151]
[1764475697706,2.77198831,136.76,136.75,1.96048151]
[1764475698931,5.99198831,136.76,136.74,1.96048151]
[1764475699136,10.08460256,136.75,136.74,1.96048151]
[1764475700507,11.2517595,136.75,136.74,1.96048151]
[1764475704529,11.2517595,136.75,136.73,1.96048151]
[1764475704729,3.92914525,136.74,136.73,1.96048151]
[1764475706437,11.24229429,136.74,136.73,1.96048151]
[1764475707231,11.24229429,136.74,136.71,0.67]
[1764475707232,11.24229429,136.74,136.72,1.96048151]
[1764475707428,3.95914525,136.73,136.72,1.96048151]
[1764475707941,3.95914525,136.73,136.71,1.96048151]
[1764475708138,0.72,136.72,136.71,1.96048151]
[1764475708339,8.03421884,136.72,136.71,1.96048151]
[1764475709147,11.27336409,136.72,136.71,1.96048151]
[1764475709327,11.27336409,136.72,136.71,2.63048151]
[1764475709328,7.31421884,136.72,136.71,2.63048151]
[1764475709527,7.31421884,136.72,136.71,1.96048151]
[1764475710539,8.03421884,136.72,136.71,1.96048151]
[1764475711836,7.31421884,136.72,136.71,1.96048151]
[1764475712228,8.03371736,136.73,136.72,1.96048151]
[1764475717761,7.31330301,136.74,136.73,1.96048151]
[1764475718335,8.03330301,136.74,136.73,1.96048151]
[1764475719962,11.27244826,136.74,136.73,1.96048151]
[1764475720164,11.27244826,136.74,136.72,1.96048151]
[1764475720335,11.27244826,136.74,136.73,1.96048151]
[1764475720532,10.55244826,136.74,136.73,1.96048151]
[1764475720736,7.31330301,136.74,136.73,1.96048151]
[1764475720937,8.03330301,136.74,136.73,1.96048151]
[1764475721659,11.27244826,136.74,136.73,1.96048151]
[1764475722464,11.27244826,136.74,136.71,1.96048151]
[1764475722758,3.95914525,136.73,136.71,1.96048151]
[1764475722940,7.17914525,136.73,136.72,1.96048151]
[1764475723138,0.72,136.72,136.69,1.96048151]
[1764475723355,6.45914525,136.72,136.7,1.96048151]
[1764475723548,7.17914525,136.73,136.72,1.96048151]
[1764475725357,14.49282915,136.73,136.72,1.96048151]
[1764475726954,11.27282915,136.73,136.72,1.96048151]
[1764475728161,11.27282915,136.73,136.71,1.96048151]
[1764475728338,11.27282915,136.73,136.72,1.96048151]
[1764475732457,11.27282915,136.73,136.71,1.96048151]
[1764475732656,11.27282915,136.73,136.72,1.96048151]
[1764475733273,8.0336839,136.73,136.72,1.96048151]
[1764475733766,7.3136839,136.73,136.72,1.96048151]
[1764475733975,7.3136839,136.73,136.71,1.96048151]
[1764475734152,7.3136839,136.73,136.72,1.96048151]
[1764475737661,7.3136839,136.73,136.72,2.66048151]
[1764475738063,7.3136839,136.73,136.72,1.96048151]
[1764475738362,8.01314904,136.74,136.72,1.96048151]
[1764475738560,7.31314904,136.74,136.72,1.96048151]
[1764475738775,7.31314904,136.74,136.73,0.7]
[1764475739151,7.31314904,136.74,136.72,2.66048151]
[1764475740673,7.31278399,136.75,136.73,2.66048151]
[1764475740880,7.31278399,136.75,136.74,1.96048151]
[1764475741255,7.31278399,136.75,136.74,2.66048151]
[1764475741770,7.31278399,136.75,136.74,1.96048151]
[1764475742271,7.31278399,136.75,136.74,2.66048151]
[1764475742452,25.59279316,136.76,136.74,2.66048151]
[1764475742853,22.3153104,136.8,136.78,1.96048151]
[1764475743091,38.6241744,136.8,136.78,1.96048151]
[1764475743277,7.31047591,136.79,136.77,2.66048151]
[1764475743483,7.31047591,136.79,136.78,1.96048151]
[1764475743791,22.19401971,136.82,136.78,1.96048151]
[1764475743792,3.84145032,136.82,136.79,1.96048151]
[1764475743950,7.29581622,137.07,136.81,72.4082905]
[1764475744152,7.99502356,137.08,137.03,1.96048151]
[1764475744352,3.23914525,137.1,137.07,1.96048151]
[1764475744578,0.7,137.1,137.08,1.96048151]
[1764475744767,3.51634985,137.11,137.09,1.96048151]
[1764475745077,3.51634985,137.11,137.1,1.96048151]
[1764475745377,3.51634985,137.11,137.1,3.26]
[1764475745679,3.51634985,137.11,137.1,5.22048151]
[1764475746381,3.51634985,137.11,137.1,1.96048151]
[1764475746559,3.51634985,137.11,137.1,5.22048151]
[1764475746961,4.21634985,137.11,137.1,1.96048151]
[1764475747573,11.50976389,137.11,137.1,1.96048151]
[1764475747780,20.05674151,137.11,137.1,1.96048151]
[1764475747978,11.50976389,137.11,137.1,1.96048151]
[1764475753502,3.51634985,137.11,137.1,1.96048151]
[1764475753670,10.80976389,137.11,137.1,1.96048151]
[1764475753985,20.05674151,137.11,137.1,1.96048151]
[1764475755288,29.743299,137.11,137.1,1.96048151]
[1764475755489,38.29027662,137.11,137.1,1.96048151]
[1764475756867,38.29027662,137.11,137.08,1.96048151]
[1764475757194,38.29027662,137.11,137.1,1.96048151]
[1764475757993,29.743299,137.11,137.1,1.96048151]
[1764475758688,38.29027662,137.11,137.1,1.96048151]
[1764475758893,37.59027662,137.11,137.1,1.96048151]
[1764475759795,38.29027662,137.11,137.1,1.96048151]
[1764475760208,29.043299,137.11,137.1,1.96048151]
[1764475760500,29.743299,137.11,137.1,1.96048151]
[1764475761196,38.29027662,137.11,137.1,1.96048151]
[1764475761809,38.29027662,137.11,137.07,1.96048151]
[1764475761810,7.29501021,137.08,137.07,1.96048151]
[1764475765404,7.98501021,137.08,137.07,1.96048151]
[1764475765605,12.89575178,137.08,137.07,1.96048151]
[1764475766511,10.04820584,137.08,137.07,1.96048151]
[1764475767718,7.98501021,137.08,137.07,1.96048151]
[1764475767900,10.04820584,137.08,137.07,1.96048151]
[1764475768439,28.28573137,137.08,137.07,1.96048151]
[1764475768722,26.22253574,137.08,137.07,1.96048151]
[1764475769832,28.28573137,137.08,137.06,1.96048151]
[1764475770028,2.06319563,137.07,137.06,1.96048151]
[1764475770215,2.75319563,137.07,137.06,1.96048151]
[1764475771533,10.04873805,137.07,137.06,1.96048151]
[1764475771727,31.5275941,137.07,137.06,1.96048151]
[1764475772204,31.5275941,137.07,137.04,1.96048151]
[1764475772406,2.75319563,137.06,137.04,1.96048151]
[1764475772620,2.75319563,137.06,137.05,1.96048151]
[1764475773002,2.75319563,137.06,137.04,1.96048151]
[1764475773202,0.69,137.05,137.04,1.96048151]
[1764475773403,7.98660707,137.05,137.04,1.96048151]
[1764475773604,10.0498027,137.05,137.04,1.96048151]
[1764475774219,13.2898027,137.05,137.04,1.96048151]
[1764475774414,13.2898027,137.05,137.03,1.96048151]
[1764475774623,2.75319563,137.04,137.03,1.96048151]
[1764475775111,16.308864,137.02,137.01,1.96048151]
[1764475775307,23.60706864,137.02,137.01,1.96048151]
[1764475775527,24.29706864,137.02,137.01,1.96048151]
[1764475775828,26.36026427,137.02,137.01,1.96048151]
[1764475777829,26.36026427,137.02,136.99,1.96048151]
[1764475777830,44.60577587,137.02,136.99,1.96048151]
[1764475778031,44.60577587,137.02,137.01,1.96048151]
[1764475778032,23.60706864,137.02,137.01,1.96048151]
[1764475778335,25.67026427,137.02,137.01,1.96048151]
[1764475778918,26.36026427,137.02,137.01,1.96048151]
[1764475779407,26.36026427,137.02,137.0,1.96048151]
[1764475779408,29.60026427,137.02,137.0,1.96048151]
[1764475779613,0.69,137.01,137.0,1.96048151]
[1764475779809,7.29873731,137.01,137.0,1.96048151]
[1764475781930,9.36193294,137.01,137.0,1.96048151]
[1764475782528,7.29873731,137.01,137.0,1.96048151]
[1764475783127,9.36193294,137.01,137.0,1.96048151]
[1764475785652,10.05193294,137.01,137.0,1.96048151]
[1764475786852,10.05193294,137.01,136.99,1.96048151]
[1764475787148,16.308864,136.99,136.98,1.96048151]
[1764475787356,18.37205963,136.99,136.98,1.96048151]
[1764475787547,19.06205963,136.99,136.98,1.96048151]
[1764475788432,26.36186253,136.99,136.98,1.96048151]
[1764475788630,23.6086669,136.99,136.98,1.96048151]
[1764475788838,7.2998029,136.99,136.98,1.96048151]
[1764475789242,9.36299853,136.99,136.98,1.96048151]
[1764475789940,7.2998029,136.99,136.98,1.96048151]
[1764475790246,10.05299853,136.99,136.98,1.96048151]
[1764475790935,10.05299853,136.99,136.97,1.96048151]
[1764475791141,7.9898029,136.99,136.98,1.96048151]
[1764475791341,11.2298029,136.99,136.98,1.96048151]
[1764475791949,10.5398029,136.99,136.98,1.96048151]
[1764475792242,11.2298029,136.99,136.98,1.96048151]
[1764475794451,7.9898029,136.99,136.98,1.96048151]
[1764475794662,11.2298029,136.99,136.98,1.96048151]
[1764475797139,13.29299853,136.99,136.98,1.96048151]
[1764475800859,7.2998029,136.99,136.98,1.96048151]
[1764475801256,26.21834623,137.05,137.03,1.96048151]
[1764475801441,26.21834623,137.05,137.04,1.96048151]
[1764475801646,28.28154186,137.05,137.04,1.96048151]
[1764475801848,31.52154186,137.05,137.03,1.96048151]
[1764475802159,2.74319563,137.04,137.03,1.96048151]
[1764475802337,10.04033515,137.04,137.03,1.96048151]
[1764475802768,7.97713952,137.04,137.03,1.96048151]
[1764475804053,10.04033515,137.04,137.03,1.96048151]
[1764475804942,10.04033515,137.04,137.02,1.96048151]
[1764475805262,0.68,137.03,137.02,1.96048151]
[1764475805460,2.74319563,137.03,137.02,1.96048151]
[1764475805856,0.68,137.03,137.02,1.96048151]
[1764475806163,13.28086767,137.03,137.01,1.96048151]
[1764475806464,2.06319563,137.02,137.01,1.96048151]
[1764475806653,2.74319563,137.02,137.01,1.96048151]
[1764475807249,10.04140027,137.02,137.01,1.96048151]
[1764475808968,7.29820464,137.02,137.01,1.96048151]
[1764475809354,7.97820464,137.02,137.01,1.96048151]
[1764475809969,10.04140027,137.02,137.01,1.96048151]
[1764475810169,7.97820464,137.02,137.01,1.96048151]
[1764475813571,10.04140027,137.02,137.01,1.96048151]
[1764475814357,10.04140027,137.02,137.0,1.96048151]
[1764475814558,9.36140027,137.02,137.01,1.96048151]
[1764475814870,7.29820464,137.02,137.01,1.96048151]
[1764475815072,7.97820464,137.02,137.01,1.96048151]
[1764475819383,7.97820464,137.02,137.0,1.96048151]
[1764475819586,7.29820464,137.02,137.01,1.96048151]
[1764475820071,7.29820464,137.02,137.0,1.96048151]
[1764475820072,7.97820464,137.02,137.0,1.96048151]
[1764475820278,7.29820464,137.02,137.01,1.96048151]
[1764475820884,7.95820464,137.02,137.01,1.96048151]
[1764475824594,11.1848224,137.02,137.01,1.96048151]
[1764475826688,11.1848224,137.02,137.0,1.96048151]
[1764475826998,11.1848224,137.02,137.01,1.96048151]
[1764475826999,10.5248224,137.02,137.01,1.96048151]
[1764475827373,11.2348224,137.02,137.0,1.96048151]
[1764475827688,10.5248224,137.02,137.0,1.96048151]
[1764475828072,8.00873731,137.01,137.0,1.96048151]
[1764475830074,11.24873731,137.01,137.0,1.96048151]
[1764475831705,3.24,137.01,137.0,1.96048151]
[1764475833697,10.53873731,137.01,137.0,1.96048151]
[1764475836204,7.29873731,137.01,137.0,1.96048151]
[1764475836694,7.29820464,137.02,137.0,1.96048151]
[1764475836895,7.29820464,137.02,137.01,1.96048151]
[1764475837477,8.00820464,137.02,137.01,1.96048151]
[1764475838500,7.29820464,137.02,137.01,1.96048151]
[1764475839604,8.00820464,137.02,137.01,1.96048151]
[1764475841078,26.84672857,137.03,137.01,1.96048151]
[1764475841279,26.24848959,137.05,137.04,1.96048151]
[1764475842312,29.47510735,137.05,137.04,1.96048151]
[1764475844289,26.24848959,137.05,137.04,1.96048151]
[1764475845790,26.24848959,137.05,137.03,1.96048151]
[1764475845993,26.24848959,137.05,137.04,1.96048151]
[1764475847007,7.29660707,137.05,137.04,1.96048151]
[1764475851014,8.00660707,137.05,137.04,1.96048151]
[1764475851800,19.53548176,137.06,137.05,1.96048151]
[1764475851801,7.29624808,137.06,137.05,1.96048151]
[1764475852011,8.00624808,137.06,137.05,1.96048151]
[1764475856102,16.308864,137.08,137.07,1.96048151]
[1764475856305,0.72,137.09,137.08,1.96048151]
[1764475856914,8.01447808,137.09,137.08,1.96048151]
[1764475857221,11.24109584,137.09,137.08,1.96048151]
[1764475859217,8.01447808,137.09,137.08,1.96048151]
[1764475861126,14.46109584,137.09,137.06,1.96048151]
[1764475861302,3.22661776,137.07,137.06,1.96048151]
[1764475861702,3.94661776,137.07,137.06,1.96048151]
[1764475862330,11.24216018,137.07,137.06,1.96048151]
[1764475862499,14.46216018,137.07,137.05,1.96048151]
[1764475862705,14.46216018,137.07,137.04,1.96048151]
[1764475862706,16.308864,137.05,137.04,1.96048151]
[1764475862912,22.75548176,137.05,137.04,1.96048151]
[1764475863119,23.47548176,137.05,137.04,1.96048151]
[1764475863721,30.77208883,137.05,137.04,1.96048151]
[1764475864706,30.77208883,137.05,137.03,1.96048151]